fUST/lending_fUST_20241206
["ID","MTS","AMOUNT","RATE_DAILY","PERIOD"]
[344414144,1733425835969,-300.0,0.00029991,2]
[344414145,1733425835979,-15994.0,0.00029991,2]
[344414146,1733425835988,-3579.06469472,0.00029999,2]
[344414147,1733425835997,-154.399,0.0003,2]
[344414148,1733425836007,-261.0,0.0003,2]
[344414149,1733425836018,-153.46,0.0003,31]
[344414150,1733425836028,-1205.05432852,0.0003,2]
[344414151,1733425836037,-152.26,0.00030076,3]
[344414152,1733425836047,-3579.06469468,0.00030086,2]
[344414153,1733425836056,-1454.00006613,0.00030097,34]
[344414154,1733425836066,-166.57622243,0.00030099,2]
[344414155,1733425836076,-500.0,0.00030099,2]
[344414156,1733425836085,-500.0,0.00030099,2]
[344414157,1733425836095,-547.15088925,0.00030099,2]
[344414158,1733425836104,-479.97647131,0.00030099,2]
[344414159,1733425836113,-500.0,0.00030099,2]
[344414160,1733425836126,-181.37821576,0.00030099,2]
[344414161,1733425836136,-349.20438962,0.00030099,2]
[344414163,1733425836145,-280.34760002,0.00030099,2]
[344414166,1733425836156,-500.0,0.00030099,2]
[344414168,1733425836165,-411.56699605,0.00030099,2]
[344414170,1733425836174,-500.0,0.00030099,2]
[344414172,1733425836184,-500.0,0.00030099,2]
[344414174,1733425836194,-500.0,0.00030099,2]
[344414176,1733425836203,-500.0,0.00030099,2]
[344414178,1733425836212,-10500.0,0.00030099,3]
[344414180,1733425836222,-10379.12320076,0.00030099,5]
[344414182,1733425836231,-500.0,0.00030099,2]
[344414184,1733425836240,-19568.14584185,0.000301,2]
[344414186,1733425836250,-7708.27103244,0.000301,7]
[344414188,1733425836262,-12768.9103678,0.000301,7]
[344414205,1733425838770,-400.0,0.0003,2]
[344414206,1733425838779,-15020.40000036,0.000301,7]
[344414215,1733425840675,-237.49450623,0.0002178,10]
[344414217,1733425840686,-70134.50549377,0.000301,7]
[344414218,1733425840698,-474.0,0.000301,7]
[344414220,1733425840709,-51497.796341,0.000301,7]
[344414240,1733425844969,-635.07944737,0.000301,7]
[344414247,1733425845229,-19949.26857812,0.000301,7]
[344414266,1733425846826,-229.0,0.0003,2]
[344414267,1733425846836,-9811.9876949,0.000301,7]
[344414268,1733425846848,-520249.36056674,0.000301,7]
[344414269,1733425846886,-50280.24970466,0.000301,7]
[344414275,1733426270385,1000.0,0.00031,120]
[344414278,1733426629743,308.015517,0.00030705,120]
[344414279,1733426680223,161.584649,0.00013973,2]
[344414755,1733427038756,-2684.29852101,0.0002499,2]
[344414756,1733427038767,-248.0,0.00024999,2]
[344414757,1733427038776,-300.0,0.00024999,2]
[344414758,1733427038786,-16138.2014789,0.00025,2]
[344414759,1733427038814,-23214.16526785,0.00025,2]
[344414760,1733427038823,-1243.92754841,0.0002509,2]
[344414761,1733427038832,-2684.29852101,0.00025792,2]
[344414762,1733427038842,-171.5702175,0.00026,5]
[344414763,1733427038851,-2684.29852101,0.00026594,2]
[344414764,1733427038861,-179.999999,0.00027,2]
[344414765,1733427038870,-358.55191715,0.00027082,2]
[344414766,1733427038882,-61.44808285,0.00027082,2]
[344414767,1733427038891,-945.65191715,0.00027396,2]
[344414779,1733427040811,-582.04603108,0.00027396,2]
[344414780,1733427040823,-1156.60057278,0.00027396,2]
[344414781,1733427040833,-640.65071251,0.00027989,2]
[344414782,1733427040843,-23342.54513061,0.0002799,2]
[344414783,1733427040876,-428.13399806,0.0002799,2]
[344414784,1733427040886,-2684.29852101,0.00028198,2]
[344414785,1733427040895,-157.525,0.0002859,2]
[344414786,1733427040905,-185.0035287,0.00028609,2]
[344414787,1733427040914,-2861.35270479,0.00028619,2]
[344414802,1733427044078,-2743.16057291,0.00028619,2]
[344414803,1733427044088,-250.449865,0.00028619,2]
[344414804,1733427044097,-650.0212062,0.00028766,2]
[344414805,1733427044106,-1522.30801386,0.00029,2]
[344414806,1733427044138,-1161.99050715,0.00029,2]
[344414807,1733427044147,-554.64211636,0.00029339,2]
[344414808,1733427044197,-32.35788364,0.00029339,2]
[344414809,1733427044207,-250.449865,0.00029678,2]
[344414810,1733427044216,-2684.29852101,0.00029802,2]
[344414811,1733427044225,-152.49,0.0003,31]
[344414812,1733427044234,-152.49,0.0003,31]
[344414813,1733427044244,-152.49,0.0003,31]
[344414814,1733427044254,-152.49,0.0003,31]
[344414815,1733427044263,-2272.79759511,0.00030099,2]
[344414829,1733427188578,-11408.45334968,0.0003105,120]
[344414837,1733427378620,164.531853,0.00013973,2]
[344414874,1733428232148,-187.837398,0.00029076,2]
[344414876,1733428232160,-152.5,0.0003,31]
[344414878,1733428232172,-152.5,0.0003,31]
[344414879,1733428232183,-152.5,0.0003,31]
[344414880,1733428232194,-152.5,0.0003,31]
[344414881,1733428232205,-335.53731517,0.0003,2]
[344414882,1733428232217,-400.0,0.00030085,2]
[344414883,1733428232229,-68.67508233,0.00030086,2]
[344414884,1733428232249,-266.86223279,0.00030086,2]
[344414885,1733428232261,-2170.0,0.00030086,2]
[344414886,1733428232273,-2374.0,0.00030086,2]
[344414887,1733428232285,-1872.95144634,0.00030099,2]
[344414888,1733428232297,-166.748,0.000301,25]
[344414889,1733428232308,-9784.07292093,0.000301,2]
[344414890,1733428232319,-3290.45830154,0.000301,7]
[344414891,1733428232334,-1284.266433,0.000301,7]
[344414892,1733428232348,-10008.0,0.000301,7]
[344414930,1733428237941,-1404.71358475,0.00030099,2]
[344414931,1733428237952,-18360.07381782,0.000301,7]
[344414932,1733428237966,-19215.99999952,0.000301,7]
[344414933,1733428237979,-864.88738749,0.000301,7]
[344414934,1733428237995,-3391.45927572,0.000301,7]
[344414935,1733428238009,-19286.60612209,0.000301,7]
[344414936,1733428238023,-9990.00000001,0.000301,7]
[344414947,1733428239873,-3001.8,0.000301,7]
[344414949,1733428239886,-4976.8,0.000301,7]
[344414950,1733428239955,-828.3277105,0.000301,7]
[344414952,1733428239968,-48557.5989988,0.000301,7]
[344414973,1733428243031,-7460.175,0.000301,7]
[344414976,1733428243159,-10289.64827347,0.000301,7]
[344414977,1733428243174,-10000.0,0.000301,7]
[344414979,1733428243187,-3850.0,0.000301,7]
[344414980,1733428243201,-182345.78129254,0.000301,7]
[344414990,1733428245935,-1053.53518856,0.00030099,2]
[344414991,1733428245946,-9045.96481145,0.000301,7]
[344414993,1733428246040,-4965.75,0.000301,7]
[344415009,1733428703674,163.636802,0.00013973,2]
[344415016,1733429010750,78.19466737,0.00029217,120]
[344415017,1733429010786,71.80533263,0.00029217,120]
[344415257,1733429435199,-187.837398,0.00028663,2]
[344415258,1733429435210,-402.9816941,0.00028763,2]
[344415259,1733429435220,-4813.43005378,0.00029562,2]
[344415261,1733429435232,-951.77075678,0.00029562,2]
[344415263,1733429435241,-300.0,0.00029692,2]
[344415275,1733429435364,-5765.20081056,0.00029693,2]
[344415278,1733429435375,-24.8486045,0.00029999,2]
[344415279,1733429435387,-371.37945349,0.00029999,2]
[344415280,1733429435397,-152.51,0.0003,31]
[344415281,1733429435407,-152.51,0.0003,31]
[344415282,1733429435416,-152.51,0.0003,31]
[344415283,1733429435426,-155.00336487,0.00030043,2]
[344415284,1733429435435,-396.22805793,0.00030085,2]
[344415285,1733429435445,-67.29919961,0.00030086,7]
[344415286,1733429435457,-341.47599501,0.00030086,7]
[344415287,1733429435469,-2885.94970952,0.00030086,7]
[344415288,1733429435480,-9908.0,0.00030086,7]
[344415333,1733429438195,-4455.41509586,0.00030086,7]
[344415335,1733429438205,-790.15139142,0.00030099,2]
[344415337,1733429438214,-640.65071251,0.00030099,2]
[344415339,1733429438224,-150.01,0.00030099,2]
[344415341,1733429438233,-3813.7728002,0.000301,2]
[344415344,1733429438250,-1078.26366026,0.000301,2]
[344415346,1733429438259,-19509.86719102,0.000301,7]
[344415348,1733429438271,-19101.50000004,0.000301,7]
[344415350,1733429438282,-19836.98236168,0.000301,7]
[344415352,1733429438294,-45821.9191672,0.000301,7]
[344415354,1733429438305,-29426.87813797,0.000301,7]
[344415427,1733429442065,-59401.08800002,0.000301,7]
[344415433,1733429442122,-626.8095967,0.000301,7]
[344415434,1733429442134,-3086.3403666,0.000301,7]
[344415435,1733429442178,-49734.265494,0.000301,7]
[344415543,1733429443120,-61320.48000002,0.000301,7]
[344415545,1733429443132,-4998.78538765,0.000301,7]
[344415560,1733429443282,-186.20184824,0.00030099,2]
[344415562,1733429443292,-7460.78345891,0.000301,7]
[344415816,1733429446193,-592.61354357,0.00030099,2]
[344415818,1733429446204,-9297.38645643,0.000301,7]
[344415820,1733429446216,-9900.0,0.000301,7]
[344415825,1733429446249,-494.59,0.000301,7]
[344415827,1733429446261,-4922.25,0.000301,7]
[344415832,1733429446307,-19846.04584977,0.000301,7]
[344416328,1733429513001,163.636802,0.00013973,2]
[344416349,1733430520573,7426.19810708,0.00026,60]
[344416352,1733430546169,2140.0,0.000307,120]
[344416417,1733430634490,-265.0,0.00022,2]
[344416418,1733430634499,-131.28459476,0.00022192,2]
[344416419,1733430634511,-133.71540524,0.00022192,2]
[344416420,1733430634520,-265.0,0.00023014,2]
[344416421,1733430634530,-268.0,0.00024164,2]
[344416422,1733430634539,-281.07791247,0.00025,2]
[344416423,1733430634581,-2865.72545508,0.00025,2]
[344416424,1733430634592,-300.0,0.00025572,2]
[344416425,1733430634601,-300.0,0.00025572,2]
[344416426,1733430634611,-15154.768331,0.00025573,2]
[344416427,1733430634620,-265.0,0.00025775,2]
[344416428,1733430634630,-200.0,0.00026371,15]
[344416429,1733430634639,-182.5278091,0.00026383,2]
[344416430,1733430634648,-265.0,0.00027386,2]
[344416431,1733430634658,-187.837398,0.00027503,2]
[344416432,1733430634667,-265.0,0.00027616,2]
[344416433,1733430634676,-420.0,0.00027687,2]
[344416434,1733430634685,-181.247009,0.00027755,2]
[344416435,1733430634694,-23511.05772261,0.0002799,2]
[344416436,1733430634703,-265.0,0.00028997,2]
[344416437,1733430634713,-1047.25761389,0.00029565,2]
[344416438,1733430634721,-396.89608972,0.00029587,2]
[344416439,1733430634744,-3477.06452732,0.00029587,2]
[344416453,1733430638191,-930.8792161,0.00029707,7]
[344416455,1733430638201,-1047.25761389,0.00029714,2]
[344416457,1733430638210,-181.247009,0.0002983,2]
[344416459,1733430638219,-1047.25761389,0.00029862,2]
[344416460,1733430638230,-587.0,0.00029977,2]
[344416461,1733430638239,-152.52,0.0003,31]
[344416462,1733430638248,-152.52,0.0003,31]
[344416463,1733430638258,-152.52,0.0003,31]
[344416464,1733430638267,-767.75655527,0.0003,2]
[344416465,1733430638276,-1047.25761389,0.00030011,2]
[344416466,1733430638288,-161.06546114,0.00030073,5]
[344416467,1733430638298,-444.46015768,0.00030099,2]
[344416468,1733430638307,-500.0,0.00030099,2]
[344416469,1733430638316,-592.61354357,0.00030099,2]
[344416470,1733430638326,-8814.79320489,0.000301,2]
[344416471,1733430638335,-29558.2083246,0.000301,7]
[344416472,1733430638351,-42072.54450113,0.000301,7]
[344416473,1733430638364,-2278.67629504,0.000301,7]
[344416486,1733430640100,-1849.85152782,0.00029569,2]
[344416488,1733430640163,-6652.47197393,0.00029569,2]
[344416489,1733430640173,-8502.32350176,0.00029742,2]
[344416490,1733430640182,-14428.3045243,0.000301,7]
[344416491,1733430640195,-22830.0,0.000301,7]
[344416492,1733430640210,-1231.43227758,0.000301,7]
[344416510,1733430643462,-2879.59836882,0.000301,7]
[344416511,1733430643475,-38021.95064534,0.000301,7]
[344416512,1733430643520,-14490.48462537,0.000301,7]
[344416513,1733430643532,-5323.10944233,0.000301,7]
[344416514,1733430643544,-13375.56827015,0.000301,7]
[344416530,1733430646410,-21922.49926364,0.000301,7]
[344416531,1733430646421,-278064.99865071,0.000301,7]
[344416532,1733430646430,-500.0,0.000301,2]
[344416533,1733430646439,-500.0,0.000301,2]
[344416534,1733430646449,-500.0,0.000301,2]
[344416535,1733430646458,-500.0,0.000301,2]
[344416536,1733430646467,-263.90883388,0.000301,2]
[344416537,1733430646477,-460.92762151,0.000301,2]
[344416538,1733430646486,-150.0,0.000301,2]
[344416539,1733430646495,-179.723534,0.000301,2]
[344416540,1733430646505,-756.0,0.000301,14]
[344416541,1733430646515,-500.0,0.00030136,7]
[344416542,1733430646524,-222.19,0.00030136,7]
[344416543,1733430646533,-340.0210917,0.00030136,7]
[344416544,1733430646542,-500.0,0.00030136,7]
[344416545,1733430646551,-599.7,0.00030136,7]
[344416546,1733430646561,-500.0,0.00030136,7]
[344416547,1733430646570,-261.68339986,0.00030136,7]
[344416548,1733430646580,-511.22558233,0.00030136,7]
[344416549,1733430646592,-509.72,0.00030136,7]
[344416550,1733430646601,-518.13432994,0.00030136,7]
[344416551,1733430646610,-500.0,0.00030136,7]
[344416552,1733430646620,-397.53894357,0.00030136,7]
[344416553,1733430646629,-500.0,0.00030136,7]
[344416554,1733430646638,-500.0,0.00030136,7]
[344416555,1733430646647,-604.01,0.00030136,7]
[344416556,1733430646656,-591.7511733,0.00030136,7]
[344416557,1733430646665,-500.0,0.00030136,7]
[344416558,1733430646675,-563.68,0.00030136,7]
[344416559,1733430646684,-601.42,0.00030136,7]
[344416560,1733430646694,-475.69549608,0.00030136,7]
[344416561,1733430646703,-500.0,0.00030136,7]
[344416562,1733430646712,-500.0,0.00030136,7]
[344416563,1733430646722,-500.0,0.00030136,7]
[344416564,1733430646731,-500.0,0.00030136,7]
[344416565,1733430646741,-501.26,0.00030136,7]
[344416566,1733430646750,-503.70771313,0.00030136,7]
[344416567,1733430646760,-500.0,0.00030136,7]
[344416568,1733430646769,-500.0,0.00030136,7]
[344416569,1733430646778,-500.0,0.00030136,7]
[344416570,1733430646788,-500.0,0.00030136,7]
[344416571,1733430646797,-500.0,0.00030136,7]
[344416572,1733430646806,-500.0,0.00030136,7]
[344416573,1733430646816,-583.22,0.00030136,7]
[344416574,1733430646826,-500.0,0.00030136,7]
[344416575,1733430646835,-500.0,0.00030136,7]
[344416576,1733430646846,-592.79,0.00030136,7]
[344416577,1733430646856,-220.97,0.00030136,7]
[344416578,1733430646865,-613.67,0.00030136,7]
[344416579,1733430646874,-444.55755343,0.00030136,7]
[344416580,1733430646883,-500.0,0.00030136,7]
[344416581,1733430646892,-500.0,0.00030136,7]
[344416582,1733430646901,-500.0,0.00030136,7]
[344416583,1733430646910,-500.0,0.00030136,7]
[344416584,1733430646920,-500.0,0.00030136,7]
[344416585,1733430646929,-500.0,0.00030136,7]
[344416586,1733430646938,-500.0,0.00030136,7]
[344416587,1733430646947,-256.04,0.00030136,7]
[344416588,1733430646956,-568.44,0.00030136,7]
[344416589,1733430646966,-179.66956253,0.00030136,7]
[344416590,1733430646975,-500.0,0.00030136,7]
[344416591,1733430646984,-343.7052557,0.00030136,7]
[344416592,1733430646993,-500.0,0.00030136,7]
[344416593,1733430647002,-500.0,0.00030136,7]
[344416594,1733430647011,-621.09,0.00030136,7]
[344416595,1733430647020,-621.09,0.00030136,7]
[344416596,1733430647029,-621.09,0.00030136,7]
[344416597,1733430647039,-621.09,0.00030136,7]
[344416598,1733430647049,-621.09,0.00030136,7]
[344416599,1733430647058,-500.0,0.00030136,7]
[344416600,1733430647067,-621.09,0.00030136,7]
[344416601,1733430647076,-621.09,0.00030136,7]
[344416602,1733430647085,-621.09,0.00030136,7]
[344416603,1733430647098,-621.09,0.00030136,7]
[344416604,1733430647112,-621.09,0.00030136,7]
[344416605,1733430647121,-621.09,0.00030136,7]
[344416606,1733430647130,-621.09,0.00030136,7]
[344416607,1733430647139,-500.0,0.00030136,7]
[344416608,1733430647149,-390.29,0.00030136,7]
[344416609,1733430647158,-621.09,0.00030136,7]
[344416610,1733430647170,-621.09,0.00030136,7]
[344416611,1733430647179,-621.09,0.00030136,7]
[344416612,1733430647188,-621.09,0.00030136,7]
[344416613,1733430647197,-621.09,0.00030136,7]
[344416614,1733430647208,-621.09,0.00030136,7]
[344416615,1733430647217,-500.0,0.00030136,7]
[344416616,1733430647226,-621.09,0.00030136,7]
[344416617,1733430647235,-621.09,0.00030136,7]
[344416618,1733430647245,-621.09,0.00030136,7]
[344416619,1733430647253,-621.09,0.00030136,7]
[344416620,1733430647263,-621.09,0.00030136,7]
[344416621,1733430647272,-621.31084775,0.00030136,7]
[344416622,1733430647281,-500.0,0.00030136,7]
[344416623,1733430647290,-500.0,0.00030136,7]
[344416624,1733430647299,-500.0,0.00030136,7]
[344416625,1733430647308,-432.6663263,0.00030136,7]
[344416626,1733430647317,-500.0,0.00030136,7]
[344416627,1733430647326,-500.0,0.00030136,7]
[344416628,1733430647335,-500.0,0.00030136,7]
[344416629,1733430647345,-500.0,0.00030136,7]
[344416630,1733430647354,-500.0,0.00030136,7]
[344416631,1733430647363,-500.0,0.00030136,7]
[344416632,1733430647372,-478.63936268,0.00030136,7]
[344416633,1733430647381,-615.08,0.00030136,7]
[344416634,1733430647389,-615.08,0.00030136,7]
[344416635,1733430647399,-615.08,0.00030136,7]
[344416636,1733430647408,-615.08,0.00030136,7]
[344416637,1733430647417,-615.08,0.00030136,7]
[344416638,1733430647426,-615.08,0.00030136,7]
[344416639,1733430647436,-615.08,0.00030136,7]
[344416640,1733430647444,-615.08,0.00030136,7]
[344416641,1733430647453,-615.08,0.00030136,7]
[344416642,1733430647463,-615.08,0.00030136,7]
[344416643,1733430647471,-615.08,0.00030136,7]
[344416644,1733430647568,-615.08,0.00030136,7]
[344416645,1733430647578,-615.08,0.00030136,7]
[344416646,1733430647587,-615.08,0.00030136,7]
[344416647,1733430647602,-615.08,0.00030136,7]
[344416648,1733430647612,-615.08,0.00030136,7]
[344416649,1733430647621,-615.08,0.00030136,7]
[344416650,1733430647630,-615.08,0.00030136,7]
[344416651,1733430647639,-615.08,0.00030136,7]
[344416652,1733430647649,-615.08,0.00030136,7]
[344416653,1733430647658,-615.08,0.00030136,7]
[344416654,1733430647667,-615.08,0.00030136,7]
[344416655,1733430647676,-615.08,0.00030136,7]
[344416656,1733430647686,-615.25731535,0.00030136,7]
[344416657,1733430647697,-500.0,0.00030136,7]
[344416658,1733430647707,-500.0,0.00030136,7]
[344416659,1733430647716,-500.0,0.00030136,7]
[344416660,1733430647725,-607.80758385,0.00030136,7]
[344416661,1733430647735,-500.0,0.00030136,7]
[344416662,1733430647745,-570.18,0.00030136,7]
[344416663,1733430647755,-500.0,0.00030136,7]
[344416664,1733430647764,-500.0,0.00030136,7]
[344416665,1733430647774,-500.0,0.00030136,7]
[344416666,1733430647784,-500.0,0.00030136,7]
[344416667,1733430647793,-500.0,0.00030136,7]
[344416668,1733430647803,-622.69,0.00030136,7]
[344416669,1733430647812,-500.0,0.00030136,7]
[344416670,1733430647821,-500.0,0.00030136,7]
[344416671,1733430647830,-500.0,0.00030136,7]
[344416672,1733430647843,-216.92,0.00030136,7]
[344416673,1733430647853,-592.5,0.00030136,7]
[344416674,1733430647862,-500.0,0.00030136,7]
[344416675,1733430647871,-500.0,0.00030136,7]
[344416676,1733430647881,-272.05,0.00030136,7]
[344416677,1733430647889,-500.0,0.00030136,7]
[344416678,1733430647899,-500.0,0.00030136,7]
[344416679,1733430647908,-500.0,0.00030136,7]
[344416680,1733430647918,-500.0,0.00030136,7]
[344416681,1733430647927,-500.0,0.00030136,7]
[344416682,1733430647936,-611.31,0.00030136,7]
[344416683,1733430647946,-500.0,0.00030136,7]
[344416684,1733430647955,-500.0,0.00030136,7]
[344416685,1733430647964,-500.0,0.00030136,7]
[344416686,1733430647973,-500.0,0.00030136,7]
[344416687,1733430647982,-500.0,0.00030136,7]
[344416688,1733430647992,-500.0,0.00030136,7]
[344416689,1733430648001,-500.0,0.00030136,7]
[344416690,1733430648011,-500.0,0.00030136,7]
[344416691,1733430648020,-210.05,0.00030136,7]
[344416692,1733430648030,-500.0,0.00030136,7]
[344416693,1733430648039,-560.62,0.00030136,7]
[344416694,1733430648048,-500.0,0.00030136,2]
[344416695,1733430648058,-500.0,0.00030136,2]
[344416696,1733430648067,-379.3384291,0.00030136,2]
[344416697,1733430648076,-632.74,0.00030136,7]
[344416698,1733430648086,-262.73275857,0.00030136,7]
[344416699,1733430648101,-500.0,0.00030136,7]
[344416700,1733430648110,-571.49,0.00030136,7]
[344416701,1733430648119,-529.08,0.00030136,7]
[344416702,1733430648128,-500.0,0.00030136,7]
[344416703,1733430648137,-643.72,0.00030136,7]
[344416704,1733430648146,-151.581208,0.00030136,2]
[344416705,1733430648158,-767.75655523,0.00030152,2]
[344416706,1733430648168,-1047.25761389,0.0003016,2]
[344416707,1733430648177,-211.0,0.0003018,29]
[344416708,1733430648186,-151.0,0.0003018,7]
[344416709,1733430648195,-151.0,0.0003018,7]
[344416710,1733430648205,-151.0,0.00030246,7]
[344416711,1733430648214,-302.933344,0.00030246,7]
[344416712,1733430648224,-302.933344,0.00030246,7]
[344416713,1733430648233,-151.0,0.00030246,7]
[344416714,1733430648245,-151.0,0.00030246,7]
[344416715,1733430648254,-437.094105,0.00030246,7]
[344416716,1733430648263,-437.094105,0.00030246,7]
[344416717,1733430648273,-284.73891,0.00030246,7]
[344416718,1733430648282,-284.73891,0.00030246,7]
[344416719,1733430648291,-151.0,0.00030246,7]
[344416720,1733430648301,-151.0,0.00030246,7]
[344416721,1733430648309,-532.0,0.00030246,2]
[344416722,1733430648318,-2376.0,0.00030246,2]
[344416723,1733430648328,-2171.0,0.00030246,2]
[344416724,1733430648337,-152.52,0.000303,31]
[344416725,1733430648348,-152.52,0.000303,31]
[344416726,1733430648357,-152.52,0.000303,31]
[344416727,1733430648366,-152.52,0.000303,31]
[344416728,1733430648376,-152.52,0.000303,31]
[344416729,1733430648386,-152.52,0.000303,31]
[344416730,1733430648395,-767.75655523,0.00030303,2]
[344416731,1733430648405,-1047.25761389,0.00030309,2]
[344416732,1733430648414,-1000.0,0.00030434,2]
[344416733,1733430648424,-767.75655523,0.00030455,2]
[344416734,1733430648435,-1047.25761389,0.00030457,2]
[344416735,1733430648445,-500.0,0.00030473,5]
[344416736,1733430648454,-360.73075847,0.00030473,5]
[344416737,1733430648464,-605.13256083,0.000305,2]
[344416738,1733430648473,-2263.97303847,0.000305,7]
[344416739,1733430648531,-383.46922486,0.000305,7]
[344416740,1733430648542,-3814.19999999,0.000305,7]
[344416845,1733431832472,-4101.09303619,0.00024953,10]
[344416846,1733431832482,-401.80043502,0.0002875,5]
[344416847,1733431832491,-187.837398,0.0002885,2]
[344416848,1733431832502,-1491.0472723,0.00028868,2]
[344416849,1733431832514,-300.0,0.0002888,2]
[344416850,1733431832524,-6335.009492,0.00028881,2]
[344416851,1733431832534,-300.0,0.00029013,2]
[344416852,1733431832547,-152.56,0.0003,31]
[344416853,1733431832557,-152.56,0.0003,31]
[344416854,1733431832566,-150.0,0.000301,2]
[344416855,1733431832574,-150.0,0.00030234,2]
[344416856,1733431832584,-223.97,0.00030234,2]
[344416857,1733431832594,-250.0,0.00030234,2]
[344416858,1733431832603,-151.0,0.00030247,7]
[344416859,1733431832612,-432.30272771,0.00030247,2]
[344416860,1733431832622,-152.56,0.000303,31]
[344416861,1733431832630,-152.56,0.000303,31]
[344416862,1733431832640,-152.56,0.000303,31]
[344416863,1733431832649,-152.56,0.000303,31]
[344416864,1733431832659,-228.0,0.0003036,29]
[344416865,1733431832668,-174.54293569,0.000304,2]
[344416866,1733431832677,-174.54293564,0.00030441,2]
[344416867,1733431832686,-1000.0,0.0003048,2]
[344416868,1733431832696,-174.54293564,0.00030482,2]
[344416869,1733431832705,-246.92230982,0.00030499,2]
[344416870,1733431832715,-500.0,0.00030499,7]
[344416871,1733431832725,-2677.22773668,0.000305,7]
[344416872,1733431832735,-1502.41502012,0.000305,2]
[344416873,1733431832747,-5171.67498475,0.000305,2]
[344416896,1733431838411,-612.54714376,0.000305,2]
[344416897,1733431838420,-20709.65238212,0.000305,15]
[344416898,1733431838432,-32008.25150108,0.000305,15]
[344416899,1733431838441,-152.56,0.000305,31]
[344416900,1733431838450,-152.56,0.000305,31]
[344416901,1733431838459,-152.56,0.000305,31]
[344416902,1733431838469,-152.56,0.000305,31]
[344416903,1733431838478,-1752.097425,0.000305,3]
[344416904,1733431838487,-719.0,0.000305,15]
[344416905,1733431838497,-1000.0,0.0003051,2]
[344416906,1733431838508,-174.54293564,0.00030523,2]
[344416907,1733431838517,-1000.0,0.00030524,2]
[344416908,1733431838527,-1000.0,0.00030555,2]
[344416909,1733431838536,-174.54293564,0.00030564,2]
[344416910,1733431838548,-767.75655523,0.00030605,2]
[344416911,1733431838557,-1139.77140857,0.00030605,2]
[344416912,1733431838566,-174.54293564,0.00030605,2]
[344416914,1733431838577,-666.0,0.00030606,2]
[344416916,1733431838587,-1000.0,0.00030626,2]
[344416917,1733431838596,-500.0,0.00030627,11]
[344416918,1733431838605,-500.0,0.00030633,11]
[344416919,1733431838614,-828.76258008,0.00030648,2]
[344416920,1733431838624,-1000.0,0.00030651,2]
[344416921,1733431838633,-650.55,0.00030661,7]
[344416922,1733431838642,-2000.0,0.000307,4]
[344416923,1733431838651,-2000.0,0.000307,4]
[344416924,1733431838660,-151.0,0.00030703,7]
[344416926,1733431838671,-151.0,0.00030703,7]
[344416928,1733431838679,-151.0,0.00030703,7]
[344416929,1733431838688,-151.0,0.00030703,7]
[344416930,1733431838698,-151.0,0.00030703,7]
[344416931,1733431838707,-211.99394444,0.00030704,2]
[344416932,1733431838716,-202.66999082,0.00030704,2]
[344416933,1733431838726,-205.01622218,0.00030704,2]
[344416934,1733431838735,-393.16728276,0.00030704,2]
[344416935,1733431838744,-197.0961112,0.00030704,2]
[344416936,1733431838753,-4407.39660244,0.00030704,2]
[344416937,1733431838763,-83488.56817247,0.00030705,10]
[344416938,1733431838775,-17717.46071846,0.00030705,10]
[344416939,1733431838786,-2857.59034575,0.00030705,10]